bitfinex/quotes_SOLUSD_20250108
["timestamp","ask_amount","ask_price","bid_price","bid_amount"]
[1736340487780,20.0,195.5,195.46,12.7987]
[1736340488705,20.0,195.5,195.46,7.8733]
[1736340491303,2.34,195.56,195.5,4.9254]
[1736340491489,20.0,195.55,195.5,4.9254]
[1736340491692,2.34,195.56,195.5,4.9254]
[1736340491894,2.34,195.56,195.47,4.9254]
[1736340492080,20.0,195.55,195.47,4.9254]
[1736340492690,20.0,195.55,195.49,4.9254]
[1736340493397,20.0,195.55,195.48,4.9254]
[1736340494108,20.0,195.55,195.49,4.9254]
[1736340494526,20.0,195.55,195.5,4.9254]
[1736340494816,24.30035782,195.62,195.51,4.9254]
[1736340494988,2.34,195.61,195.52,12.832]
[1736340495190,20.0,195.6,195.52,12.832]
[1736340495587,20.0,195.6,195.52,7.9066]
[1736340495782,22.34,195.61,195.52,12.832]
[1736340496613,10.34732128,195.64,195.56,4.9254]
[1736340496817,10.34732128,195.64,195.57,4.9254]
[1736340497318,20.0,195.61,195.58,6.3813]
[1736340497790,2.34,195.63,195.58,6.3813]
[1736340498317,6.4878,195.69,195.59,1.6134]
[1736340498484,26.116884,195.68,195.59,1.6134]
[1736340498687,20.0,195.65,195.59,1.6134]
[1736340499629,20.0,195.66,195.59,6.5388]
[1736340499801,2.34,195.67,195.59,6.5388]
[1736340500427,20.0,195.66,195.59,6.5388]
[1736340500618,20.0,195.66,195.59,1.6134]
[1736340500790,20.0,195.64,195.59,1.6134]
[1736340503738,20.0,195.6,195.59,1.6134]
[1736340504028,2.34,195.6,195.59,1.6134]
[1736340505524,2.34,195.6,195.54,1.5459]
[1736340505690,22.34,195.6,195.54,1.5459]
[1736340506564,20.0,195.59,195.54,1.5459]
[1736340506858,20.0,195.55,195.54,1.5459]
[1736340507060,20.0,195.55,195.53,6.6196]
[1736340509865,20.0,195.55,195.49,1.6472]
[1736340509866,20.0,195.55,195.49,7.6554]
[1736340510282,20.0,195.52,195.45,6.0082]
[1736340510432,23.776884,195.54,195.45,6.0082]
[1736340510433,22.34,195.51,195.45,6.0082]
[1736340511936,20.0,195.48,195.45,6.0082]
[1736340512363,20.0,195.48,195.44,1.5327]
[1736340512956,20.0,195.48,195.41,6.2152]
[1736340513831,20.0746,195.48,195.41,6.2152]
[1736340514458,43.776884,195.47,195.41,6.2152]
[1736340514649,43.851484,195.47,195.41,6.2152]
[1736340516441,48.851484,195.47,195.41,6.2152]
[1736340517668,48.776884,195.47,195.41,6.2152]
[1736340517970,20.0,195.42,195.41,6.2152]
[1736340518156,22.34,195.42,195.41,6.2152]
[1736340518779,2.34,195.42,195.41,6.2152]
[1736340519151,2.34,195.42,195.39,1.5044]
[1736340519348,2.34,195.42,195.36,6.6099]
[1736340519349,20.0,195.38,195.36,6.6099]
[1736340522801,20.0,195.37,195.31,6.4098]
[1736340523148,43.776884,195.36,195.31,6.4098]
[1736340523350,2.34,195.35,195.31,6.4098]
[1736340523879,20.0,195.31,195.29,1.5245]
[1736340524246,20.0,195.31,195.26,6.4098]
[1736340524452,20.0,195.29,195.24,1.6406]
[1736340524646,20.0,195.27,195.24,1.6406]
[1736340525467,2.34,195.28,195.24,1.6406]
[1736340526380,20.0,195.29,195.24,1.6406]
[1736340526548,24.30035782,195.32,195.26,4.9254]
[1736340526753,2.34,195.33,195.28,4.9254]
[1736340526947,24.30035782,195.36,195.28,4.9254]
[1736340526948,2.34,195.34,195.28,4.9254]
[1736340527263,20.0,195.33,195.28,4.9254]
[1736340527967,2.34,195.34,195.28,4.9254]
[1736340528178,2.34,195.34,195.3,4.9254]
[1736340529193,22.34,195.34,195.29,11.3219]
[1736340529386,2.34,195.34,195.3,4.9254]
[1736340529893,22.34,195.34,195.3,4.9254]
[1736340531062,24.30035782,195.41,195.32,4.9254]
[1736340531268,0.0746,195.44,195.34,4.9254]
[1736340531567,20.0,195.42,195.34,4.9254]
[1736340532394,20.0,195.38,195.34,4.9254]
[1736340532598,20.0,195.38,195.33,6.4485]
[1736340532892,20.0,195.38,195.33,1.5231]
[1736340534601,20.0,195.39,195.33,1.5231]
[1736340535196,20.0,195.34,195.33,1.5231]
[1736340535581,20.0,195.39,195.33,1.5231]
[1736340535884,20.0,195.38,195.33,1.5231]
[1736340536393,43.776884,195.37,195.33,1.5231]
[1736340536699,2.34,195.36,195.33,1.5231]
[1736340538069,20.0,195.37,195.33,1.5231]
[1736340538267,2.34,195.36,195.33,6.4485]
[1736340538468,2.34,195.4,195.33,6.4485]
[1736340538708,2.34,195.4,195.34,4.9254]
[1736340538893,6.3965,195.42,195.34,4.9254]
[1736340539402,8.7365,195.42,195.36,4.9254]
[1736340539590,6.3965,195.42,195.37,4.9254]
[1736340539969,26.64035782,195.43,195.37,4.9254]
[1736340540322,33.29525782,195.43,195.36,4.9254]
[1736340540501,20.0,195.4,195.36,4.9254]
[1736340540683,20.0,195.4,195.35,11.5803]
[1736340541003,20.0,195.4,195.36,4.9254]
[1736340541189,20.0,195.4,195.37,4.9254]
[1736340541392,20.0,195.4,195.35,11.5803]
[1736340541572,20.0,195.4,195.35,6.6549]
[1736340543076,23.776884,195.39,195.35,6.6549]
[1736340543268,20.0,195.36,195.35,6.6549]
[1736340543498,2.34,195.36,195.35,6.6549]
[1736340544113,23.776884,195.35,195.33,1.5231]
[1736340544282,20.0,195.32,195.29,4.9254]
[1736340544487,20.0,195.32,195.28,4.9254]
[1736340544800,2.34,195.33,195.26,4.9254]
[1736340545174,2.34,195.33,195.27,4.9254]
[1736340545388,2.34,195.33,195.26,4.9254]
[1736340545810,2.34,195.33,195.25,4.9254]
[1736340546471,2.34,195.33,195.27,4.9254]
[1736340546902,2.34,195.33,195.24,12.6087]
[1736340547108,2.34,195.33,195.26,4.9254]
[1736340547409,20.0,195.3,195.24,12.6087]
[1736340547584,20.0,195.3,195.24,7.6833]
[1736340547884,20.0,195.3,195.24,12.6087]
[1736340548090,20.0,195.3,195.24,7.6833]
[1736340548482,20.0,195.3,195.24,12.6087]
[1736340548822,20.0,195.26,195.24,7.6833]
[1736340548978,22.34,195.26,195.24,7.6833]
[1736340551409,22.34,195.26,195.22,4.9254]
[1736340551816,22.34,195.26,195.23,4.9254]
[1736340552025,2.34,195.26,195.24,11.4358]
[1736340552314,2.34,195.26,195.25,4.9254]
[1736340552528,2.34,195.3,195.28,4.9254]
[1736340552885,2.34,195.3,195.26,4.9254]
[1736340553114,2.34,195.3,195.27,4.9254]
[1736340553413,2.34,195.3,195.28,4.9254]
[1736340553614,2.34,195.3,195.26,4.9254]
[1736340554115,2.34,195.3,195.27,4.9254]
[1736340554414,2.34,195.3,195.25,4.9254]
[1736340554793,2.34,195.3,195.24,11.4358]
[1736340555094,2.34,195.3,195.24,6.5104]
[1736340555297,20.0,195.26,195.23,1.6514]
[1736340556116,20.0,195.26,195.23,6.5768]
[1736340556328,20.0,195.26,195.24,4.9254]
[1736340556614,2.34,195.27,195.25,4.9254]
[1736340556782,2.34,195.27,195.26,4.9254]
[1736340556986,22.34,195.3,195.26,4.9254]
[1736340557186,2.34,195.3,195.27,4.9254]
[1736340558018,2.34,195.3,195.28,4.9254]
[1736340558620,2.34,195.3,195.27,4.9254]
[1736340559318,2.34,195.3,195.28,4.9254]
[1736340560020,2.34,195.3,195.29,4.9254]
[1736340560225,2.34,195.32,195.29,4.9254]
[1736340560537,2.34,195.34,195.31,4.9254]
[1736340560696,2.34,195.34,195.32,4.9254]
[1736340561027,2.34,195.34,195.33,4.9254]
[1736340561390,2.34,195.36,195.34,4.9254]
[1736340562126,20.0,195.38,195.34,4.9254]
[1736340562310,2.34,195.37,195.34,4.9254]
[1736340562800,2.34,195.37,195.33,4.9254]
[1736340562998,2.34,195.37,195.32,1.5095]
[1736340563234,20.0,195.33,195.32,1.5095]
[1736340564405,20.0,195.31,195.25,4.9254]
[1736340564608,22.34,195.31,195.25,4.9254]
[1736340564793,22.34,195.31,195.23,6.2497]
[1736340564997,2.34,195.31,195.23,11.1751]
[1736340565220,2.34,195.31,195.24,4.9254]
[1736340565626,2.34,195.31,195.25,4.9254]
[1736340565832,2.34,195.31,195.26,4.9254]
[1736340567117,20.0,195.33,195.26,4.9254]
[1736340567118,2.34,195.32,195.26,4.9254]
[1736340567323,0.0746,195.4,195.29,4.9254]
[1736340567628,2.34,195.39,195.31,4.9254]
[1736340567840,8.00732128,195.42,195.34,4.9254]
[1736340568011,8.00732128,195.42,195.36,4.9254]
[1736340568012,2.34,195.41,195.36,4.9254]
[1736340568212,8.00732128,195.43,195.38,4.9254]
[1736340568835,8.00732128,195.43,195.4,4.9254]
[1736340569021,8.00732128,195.43,195.41,4.9254]
[1736340569214,20.0,195.42,195.41,4.9254]
[1736340570119,2.34,195.47,195.41,4.9254]
[1736340570509,2.34,195.48,195.41,4.9254]
[1736340570707,23.776884,195.47,195.41,4.9254]
[1736340571136,20.0,195.44,195.41,4.9254]
[1736340571332,23.776884,195.47,195.41,4.9254]
[1736340571723,20.0,195.44,195.41,4.9254]
[1736340572439,2.34,195.43,195.41,4.9254]
[1736340572605,2.34,195.43,195.4,4.9254]
[1736340573044,2.34,195.43,195.39,4.9254]
[1736340573218,2.34,195.43,195.4,4.9254]
[1736340575335,2.34,195.43,195.41,4.9254]
[1736340575638,2.34,195.43,195.42,4.9254]
[1736340576341,20.0,195.54,195.43,4.9254]
[1736340576508,2.34,195.53,195.44,4.9254]
[1736340576707,43.776884,195.52,195.4,4.9254]
[1736340576904,20.0,195.5,195.41,4.9254]
[1736340577141,20.0,195.5,195.43,4.9254]
[1736340577526,20.0,195.5,195.41,4.9254]
[1736340578040,20.0,195.5,195.39,4.9254]
[1736340578333,20.0,195.5,195.33,87.4033]
[1736340578334,23.851484,195.49,195.37,4.9254]
[1736340578555,20.0,195.45,195.36,4.9254]
[1736340578715,20.0,195.36,195.34,4.9254]
[1736340579049,2.34,195.37,195.34,4.9254]
[1736340579536,2.34,195.37,195.33,6.6033]
[1736340580106,2.34,195.37,195.33,11.5287]
[1736340581740,2.34,195.37,195.33,6.6033]
[1736340581945,2.34,195.37,195.33,11.5287]
[1736340582236,2.34,195.37,195.33,6.6033]
[1736340582446,2.34,195.37,195.33,1006.6033]
[1736340583342,2.34,195.37,195.33,1011.5287]
[1736340583655,2.34,195.37,195.33,1006.6033]
[1736340584019,2.34,195.37,195.33,1011.5287]
[1736340586251,23.776884,195.41,195.35,4.9254]
[1736340586449,23.776884,195.41,195.38,4.9254]
[1736340586450,2.34,195.41,195.38,4.9254]
[1736340586821,2.34,195.41,195.33,1006.6033]
[1736340586822,2.34,195.41,195.39,4.9254]
[1736340587036,20.0,195.45,195.39,4.9254]
[1736340587359,2.34,195.44,195.39,4.9254]
[1736340588155,2.34,195.44,195.37,4.9254]
[1736340588350,20.0,195.4,195.36,4.9254]
[1736340589348,20.0,195.4,195.37,4.9254]
[1736340589563,5.0746,195.54,195.42,4.9254]
[1736340589725,2.34,195.47,195.42,4.9254]
[1736340590059,20.0,195.46,195.39,4.9254]
[1736340590530,20.0,195.42,195.39,4.9254]
[1736340590730,23.776884,195.46,195.39,4.9254]
[1736340591053,20.0,195.44,195.4,4.9254]
[1736340592162,20.0,195.44,195.39,4.9254]
[1736340592332,23.776884,195.43,195.38,4.9254]
[1736340592530,23.776884,195.43,195.37,4.9254]
[1736340592929,23.776884,195.43,195.38,4.9254]
[1736340593468,20.0,195.46,195.39,4.9254]
[1736340593756,20.0,195.42,195.4,4.9254]
[1736340594047,2.34,195.46,195.41,4.9254]
[1736340594661,20.0,195.45,195.41,4.9254]
[1736340595539,20.0,195.45,195.42,4.9254]
[1736340595869,37.77970419,195.53,195.43,6.2347]
[1736340596162,37.77970419,195.53,195.47,4.9254]
[1736340596163,17.27677019,195.53,195.47,4.9254]
[1736340596365,19.63677019,195.53,195.47,4.9254]
[1736340596537,20.0,195.5,195.47,4.9254]
[1736340596749,23.776884,195.52,195.47,4.9254]
[1736340597461,20.0,195.49,195.47,4.9254]
[1736340599875,20.0,195.49,195.48,4.9254]
[1736340600169,20.0,195.49,195.43,6.2347]
[1736340600170,20.0,195.49,195.47,4.9254]
[1736340600389,20.0,195.49,195.44,4.9254]
[1736340600543,20.0,195.49,195.47,4.9254]
[1736340600958,20.0,195.49,195.48,1000.0]
[1736340601162,43.776884,195.49,195.48,1000.0]
[1736340601368,20.0,195.49,195.48,1000.0]
[1736340601554,22.36,195.53,195.48,1000.0]
[1736340601766,20.0,195.49,195.48,1000.0]
[1736340602592,2.36,195.49,195.48,1000.0]
[1736340603073,2.36,195.49,195.48,999.5]
[1736340604697,26.136884,195.49,195.48,999.5]
[1736340605663,23.776884,195.49,195.48,999.5]
[1736340605861,26.136884,195.49,195.48,999.5]
[1736340606468,2.36,195.49,195.48,999.5]
[1736340606789,2.36,195.49,195.48,1004.4254]
[1736340607375,256.24363015,195.55,195.48,1004.4254]
[1736340607691,21.33589536,195.59,195.49,6.5027]
[1736340607911,46.631112,195.58,195.53,4.9254]
[1736340608084,26.136884,195.58,195.53,4.9254]
[1736340608391,20.0,195.55,195.5,4.9254]
[1736340608594,22.854126,195.58,195.52,4.9254]
[1736340608776,2.36,195.57,195.53,4.9254]
[1736340609095,2.36,195.57,195.55,4.9254]
[1736340609298,20.0,195.57,195.55,4.9254]
[1736340609499,8.00732128,195.66,195.57,4.9254]
[1736340609665,20.488192,195.64,195.6,4.9254]
[1736340610000,2.36,195.65,195.6,4.9254]
[1736340610405,20.0,195.62,195.6,4.9254]
[1736340610771,23.776884,195.64,195.59,4.9254]
[1736340610991,29.965584,195.64,195.57,11.1141]
[1736340611312,20.0,195.61,195.57,6.1887]
[1736340612992,6.1887,195.64,195.57,11.1141]
[1736340613299,6.1887,195.64,195.59,4.9254]
[1736340613300,20.0,195.61,195.59,4.9254]
[1736340613467,2.36,195.63,195.59,4.9254]
[1736340614084,20.0,195.59,195.57,11.1141]
[1736340614288,20.0,195.59,195.58,4.9254]
[1736340614490,22.36,195.59,195.58,4.9254]
[1736340614793,20.0,195.59,195.57,6.1887]
[1736340615099,20.0,195.59,195.58,4.9254]
[1736340615494,20.0,195.6,195.58,4.9254]
[1736340615799,20.0,195.61,195.59,4.9254]
[1736340615972,20.0,195.61,195.58,4.9254]
[1736340616174,20.0,195.61,195.58,999.5]
[1736340616688,23.776884,195.6,195.58,999.5]
[1736340616892,43.776884,195.59,195.58,999.5]
[1736340617467,2.36,195.59,195.58,999.5]
[1736340617666,20.0,195.61,195.58,999.5]
[1736340617933,2.36,195.6,195.58,999.5]
[1736340618097,26.136884,195.6,195.58,999.5]
[1736340618278,23.776884,195.59,195.58,999.5]
[1736340618685,20.0,195.59,195.58,999.5]
[1736340619204,2.36,195.59,195.58,1004.4254]
[1736340620313,22.36,195.59,195.58,1004.4254]
[1736340620885,2.36,195.59,195.58,1004.4254]
[1736340621809,2.38,195.65,195.6,11.2645]
[1736340621991,2.38,195.65,195.63,4.9254]
[1736340622199,14.0334268,195.67,195.64,6.5156]
[1736340622514,14.0334268,195.67,195.66,4.9254]
[1736340623193,20.0,195.7,195.66,4.9254]
[1736340623514,20.0,195.7,195.68,4.9254]
[1736340623707,20.0,195.7,195.66,4.9254]
[1736340624218,20.0,195.7,195.64,6.5156]
[1736340624515,20.0,195.7,195.65,4.9254]
[1736340624694,20.0,195.7,195.64,6.5156]
[1736340625011,20.0,195.7,195.65,4.9254]
[1736340625186,20.0,195.7,195.66,4.9254]
[1736340628524,2.44,195.73,195.69,4.9254]
[1736340628696,2.44,195.73,195.7,4.9254]
[1736340630116,2.44,195.73,195.68,4.9254]
[1736340630896,20.0,195.7,195.66,4.9254]
[1736340631110,20.0,195.7,195.64,6.5156]
[1736340631294,20.0,195.7,195.65,4.9254]
[1736340631496,20.0,195.7,195.66,4.9254]
[1736340631802,20.0,195.7,195.64,6.5156]
[1736340632128,20.0,195.67,195.64,6.5156]
[1736340632419,20.0,195.67,195.65,4.9254]
[1736340632616,22.42,195.68,195.64,6.5156]
[1736340632803,22.42,195.68,195.65,4.9254]
[1736340633004,22.42,195.68,195.66,4.9254]
[1736340633321,22.42,195.68,195.67,4.9254]
[1736340634124,22.42,195.68,195.64,6.5156]
[1736340634335,22.42,195.68,195.64,1.5902]
[1736340634627,22.42,195.68,195.64,6.5156]
[1736340634829,46.196884,195.68,195.67,999.5]
[1736340637325,46.271484,195.68,195.67,999.5]
[1736340637901,51.271484,195.68,195.67,999.5]
[1736340638229,51.271484,195.68,195.67,985.26]
[1736340639003,46.271484,195.68,195.67,985.26]
[1736340640323,20.0746,195.7,195.67,985.26]
[1736340640507,0.0746,195.68,195.67,985.26]
[1736340640711,23.851484,195.68,195.67,985.26]
[1736340642029,23.776884,195.68,195.67,985.26]
[1736340642209,2.4,195.68,195.67,985.26]
[1736340644821,26.176884,195.68,195.67,985.26]
[1736340645637,13.45996404,195.74,195.67,985.26]
[1736340645835,82.3,195.72,195.67,985.26]
[1736340646414,20.0,195.68,195.67,985.26]
[1736340646821,20.0,195.72,195.67,985.26]
[1736340647023,2.46,195.71,195.67,985.26]
[1736340647337,20.0,195.72,195.67,985.26]
[1736340647640,2.46,195.71,195.67,985.26]
[1736340647952,20.0,195.68,195.67,985.26]
[1736340648445,20.0,195.77,195.67,990.1854]
[1736340648607,2.44,195.76,195.7,4.9254]
[1736340649437,20.0,195.72,195.7,4.9254]
[1736340650423,22.46,195.74,195.7,4.9254]
[1736340650628,22.46,195.74,195.69,4.9254]
[1736340650841,22.46,195.74,195.68,4.9254]
[1736340651544,22.46,195.74,195.67,985.26]
[1736340651545,22.46,195.74,195.69,4.9254]
[1736340651840,20.0,195.7,195.68,4.9254]
[1736340652723,20.0,195.7,195.67,990.1854]
[1736340653139,20.0,195.7,195.67,985.26]
[1736340653319,20.0,195.7,195.69,4.9254]
[1736340653717,20.0,195.7,195.68,4.9254]
[1736340654021,20.0,195.7,195.69,4.9254]
[1736340654454,22.44,195.74,195.69,4.9254]
[1736340655131,22.44,195.74,195.7,4.9254]
[1736340655327,20.0,195.74,195.71,8.2151]
[1736340655536,2.44,195.77,195.72,4.9254]
[1736340656435,20.0,195.73,195.71,13.1405]
[1736340657255,20.0,195.73,195.72,4.9254]
[1736340657453,20.0,195.76,195.73,4.9254]
[1736340657956,20.0,195.73,195.72,4.9254]
[1736340658453,20.0,195.74,195.72,4.9254]
[1736340659450,20.0,195.74,195.71,13.1405]
[1736340660941,23.776884,195.73,195.71,8.2151]
[1736340661130,23.776884,195.73,195.69,4.9254]
[1736340661328,23.776884,195.73,195.67,991.7114]
[1736340661655,23.776884,195.73,195.7,4.9254]
[1736340661862,23.776884,195.73,195.67,986.786]
[1736340662362,23.776884,195.73,195.68,4.9254]
[1736340663420,2.44,195.72,195.69,4.9254]
[1736340664338,20.0,195.73,195.71,4.9254]
[1736340664548,82.3,195.76,195.73,4.9254]
[1736340664735,20.0,195.79,195.75,4.9254]
[1736340664934,2.44,195.78,195.77,4.9254]
[1736340665139,8.00732128,195.8,195.78,4.9254]
[1736340665340,8.00732128,195.8,195.79,4.9254]
[1736340665540,2.46,195.8,195.79,4.9254]
[1736340665739,22.46,195.8,195.79,4.9254]
[1736340665963,2.46,195.8,195.79,4.9254]
[1736340666455,22.46,195.8,195.79,4.9254]
[1736340666927,2.44,195.82,195.81,4.9254]
[1736340667134,8.2704,195.83,195.81,4.9254]
[1736340668060,2.44,195.84,195.82,4.9254]
[1736340668230,2.44,195.84,195.83,4.9254]
[1736340672570,20.0,195.85,195.84,4.9254]
[1736340673032,2.44,195.9,195.84,4.9254]
[1736340673229,20.0,195.86,195.84,4.9254]
[1736340674042,23.776884,195.85,195.83,12.7851]
[1736340674254,20.0,195.86,195.84,4.9254]
[1736340675064,20.0,195.86,195.84,990.1854]
[1736340676030,20.0,195.86,195.85,4.9254]
[1736340676931,10.2997,195.89,195.85,4.9254]
[1736340677168,20.0,195.86,195.84,990.1854]
[1736340677541,20.0,195.86,195.84,985.26]
[1736340677740,43.776884,195.86,195.85,4.9254]
[1736340678267,20.0,195.86,195.85,4.9254]
[1736340679038,7.8597,195.89,195.88,4.9254]
[1736340679564,2.48,195.96,195.91,8.1335]
[1736340679740,44.232072,195.92,195.91,8.1335]
[1736340679941,20.455188,195.92,195.91,8.1335]
[1736340680375,20.455188,195.92,195.89,4.9254]
[1736340680548,20.0,195.89,195.88,4.9254]
[1736340680874,20.0,195.89,195.88,4.6558]
[1736340681375,23.776884,195.88,195.86,8.1335]
[1736340681544,20.0,195.85,195.84,989.9158]
[1736340683749,43.776884,195.85,195.84,989.9158]
[1736340683967,43.776884,195.85,195.84,985.26]
[1736340685174,43.776884,195.85,195.84,989.9158]
[1736340685668,43.776884,195.85,195.84,985.26]
[1736340686265,43.776884,195.85,195.84,989.9158]
[1736340687266,43.776884,195.85,195.84,985.26]
[1736340693162,109.891084,195.85,195.84,947.25]
[1736340693368,109.891084,195.85,195.84,933.01]
[1736340693567,79.891084,195.85,195.84,933.01]
[1736340693860,74.891084,195.85,195.84,933.01]
[1736340694065,79.891084,195.85,195.84,933.01]
[1736340694275,74.891084,195.85,195.84,933.01]
[1736340694474,79.891084,195.85,195.84,933.01]
[1736340694678,110.261684,195.85,195.84,933.01]
[1736340696770,125.641684,195.85,195.84,887.13249147]
[1736340697295,128.081684,195.85,195.84,887.13249147]
[1736340700376,128.081684,195.85,195.84,885.13249147]
[1736340700580,128.081684,195.85,195.84,728.02308026]
[1736340701995,128.081684,195.85,195.84,661.36308026]
[1736340702202,125.641684,195.85,195.84,661.36308026]
[1736340702496,141.55892079,195.85,195.84,661.36308026]
[1736340702697,141.55892079,195.85,195.84,660.51298026]
[1736340703598,167.1027069,195.85,195.84,660.51298026]
[1736340703780,141.55892079,195.85,195.84,635.52185526]
[1736340704291,121.55892079,195.85,195.84,635.52185526]
[1736340704694,13.84143679,195.85,195.84,635.52185526]
[1736340705007,269.60437669,195.85,195.84,635.52185526]
[1736340705698,272.02437669,195.85,195.84,635.52185526]
[1736340706205,20.799388,195.92,195.84,635.52185526]
[1736340706407,2.42,195.91,195.84,635.52185526]
[1736340706572,2.42,195.9,195.84,635.52185526]
[1736340706772,20.0,195.88,195.84,635.52185526]
[1736340706994,0.3442,195.88,195.84,635.52185526]
[1736340707196,20.3442,195.87,195.84,635.52185526]
[1736340707498,23.776884,195.85,195.84,635.52185526]
[1736340707994,24.121084,195.88,195.84,635.52185526]
[1736340708197,29.121084,195.88,195.84,635.52185526]
[1736340708504,20.0,195.85,195.84,635.52185526]
[1736340709706,49.121084,195.85,195.84,635.52185526]
[1736340710011,305.2282239,195.85,195.84,635.52185526]
[1736340712095,320.6082239,195.85,195.84,635.52185526]
[1736340712487,320.6082239,195.85,195.84,475.22185526]
[1736340712488,323.8317239,195.85,195.84,475.22185526]
[1736340714789,324.76822817,195.85,195.84,475.22185526]
[1736340717208,355.53822817,195.85,195.84,475.22185526]
[1736340717387,355.53822817,195.85,195.84,472.13935526]
[1736340717582,381.08201428,195.85,195.84,447.14823026]
[1736340717904,355.53822817,195.85,195.84,439.63043026]
[1736340718278,355.53822817,195.85,195.84,378.21331112]
[1736340718595,355.53822817,195.85,195.84,376.09391797]
[1736340718805,357.95822817,195.85,195.84,356.40502628]
[1736340718985,357.95822817,195.85,195.84,353.32611969]
[1736340719804,357.95822817,195.85,195.84,352.15481969]
[1736340720006,357.95822817,195.85,195.84,269.85481969]
[1736340720610,357.95822817,195.85,195.84,262.65961969]
[1736340723614,277.76784417,195.85,195.84,262.65961969]
[1736340723827,280.16784417,195.85,195.84,262.65961969]
[1736340725305,310.93784417,195.85,195.84,262.65961969]
[1736340725489,310.93784417,195.85,195.84,254.48201969]
[1736340727111,303.94472817,195.85,195.84,254.48201969]
[1736340727518,303.94472817,195.85,195.84,250.38411673]
[1736340728613,264.78784417,195.85,195.84,250.38411673]
[1736340728790,262.38784417,195.85,195.84,250.38411673]
[1736340728992,264.78784417,195.85,195.84,250.38411673]
[1736340730715,281.16472817,195.85,195.84,250.38411673]
[1736340730917,257.04364417,195.85,195.84,250.50960673]
[1736340731126,256.1071399,195.85,195.84,250.50960673]
[1736340731332,258.5071399,195.85,195.84,250.50960673]
[1736340731615,282.2840239,195.85,195.84,258.08870673]
[1736340732308,256.1071399,195.85,195.84,258.08870673]
[1736340732524,258.5071399,195.85,195.84,258.08870673]
[1736340732812,282.2840239,195.85,195.84,258.08870673]
[1736340736418,282.2840239,195.85,195.84,257.96321673]
[1736340736618,282.2840239,195.85,195.84,258.08870673]
[1736340737826,258.5071399,195.85,195.84,258.08870673]
[1736340738192,267.76450537,195.85,195.84,258.08870673]
[1736340738994,258.5071399,195.85,195.84,258.08870673]
[1736340739321,256.1071399,195.85,195.84,258.08870673]
[1736340739500,258.4871399,195.85,195.84,258.08870673]
[1736340739699,256.1071399,195.85,195.84,258.08870673]
[1736340739919,2.38,195.85,195.84,257.96321673]
[1736340740421,7.94081871,195.9,195.85,1.8872]
[1736340740624,2.38,195.89,195.85,1.8872]
[1736340741007,20.0,195.87,195.85,1.8872]
[1736340741214,23.776884,195.86,195.85,1.8872]
[1736340741410,82.3,195.89,195.85,1.8872]
[1736340741592,2.38,195.88,195.87,0.12549]
[1736340741798,2.38,195.88,195.86,4.6558]
[1736340742018,20.0,195.87,195.86,4.6558]
[1736340742212,10.6984,195.87,195.86,4.78129]
[1736340742393,29.7051425,195.92,195.87,4.6558]
[1736340742602,2.38,195.91,195.9,0.12549]